bitfinex-derivatives/quotes_SOLF0:USTF0_20250911
["timestamp","ask_amount","ask_price","bid_price","bid_amount"]
[1757584635459,3.52758242,224.33,224.29,0.03225778]
[1757584635663,7.01,224.33,224.29,0.03225778]
[1757584635861,1.63677553,224.34,224.29,0.03225778]
[1757584636060,7.01,224.32,224.29,0.03225778]
[1757584636261,7.01,224.33,224.29,0.03225778]
[1757584636658,1.63677553,224.34,224.29,0.03225778]
[1757584636859,7.01,224.32,224.29,0.03225778]
[1757584637066,7.01,224.33,224.29,0.03225778]
[1757584637363,1.63677553,224.34,224.29,0.03225778]
[1757584637560,3.5274451,224.33,224.29,0.03225778]
[1757584637761,7.01,224.33,224.29,0.03225778]
[1757584638256,1.63677553,224.34,224.29,0.03225778]
[1757584638454,3.52738405,224.33,224.29,0.03225778]
[1757584638654,1.63677553,224.34,224.29,0.03225778]
[1757584638854,3.52738405,224.33,224.3,3.87]
[1757584639058,8.67547416,224.35,224.29,3.90225778]
[1757584639265,7.01,224.33,224.3,3.87]
[1757584641572,7.01,224.33,224.29,0.03225778]
[1757584641866,7.01,224.33,224.3,3.87]
[1757584642368,1.66547416,224.35,224.3,3.87]
[1757584642566,7.01,224.33,224.3,3.87]
[1757584642771,7.01,224.34,224.3,3.87]
[1757584642966,1.66547416,224.35,224.3,3.87]
[1757584642967,7.01,224.32,224.3,3.87]
[1757584645768,0.02869863,224.35,224.3,3.87]
[1757584645971,0.02869863,224.35,224.34,8.8663945]
[1757584646174,7.01,224.41,224.35,3.87]
[1757584646370,3.52309711,224.4,224.36,3.87]
[1757584646571,7.01,224.43,224.36,3.87]
[1757584646766,6.97463205,224.42,224.36,3.87]
[1757584646971,4.98497317,224.5,224.34,4.9963945]
[1757584646972,8.64677553,224.41,224.34,4.9963945]
[1757584647174,7.33,224.4,224.33,8.8663945]
[1757584648976,7.33,224.4,224.33,3.87]
[1757584656672,7.33,224.4,224.33,8.8663945]
[1757584656874,7.33,224.4,224.34,3.88]
[1757584659276,7.33,224.4,224.31,4.9963945]
[1757584659277,7.33,224.41,224.31,87.0563945]
[1757584659683,7.33,224.39,224.32,3.88]
[1757584666785,7.33,224.4,224.32,112.88]
[1757584667185,1.63677553,224.41,224.32,112.88]
[1757584667994,7.33,224.4,224.32,112.88]
[1757584668193,1.63677553,224.41,224.32,112.88]
[1757584669292,7.33,224.4,224.32,112.88]
[1757584669688,1.63677553,224.41,224.32,112.88]
[1757584670484,7.33,224.37,224.32,3.88]
[1757584670787,24.04,224.49,224.29,33.69]
[1757584670788,1.63677553,224.35,224.29,33.69]
[1757584670984,8.96677553,224.35,224.29,33.69]
[1757584674299,7.33,224.35,224.29,33.69]
[1757584681494,7.33,224.35,224.29,29.82]
[1757584681694,7.58,224.38,224.3,3.87]
[1757584683200,7.58,224.38,224.31,3.87]
[1757584683596,7.58,224.42,224.31,8.8663945]
[1757584683796,7.58,224.42,224.32,3.87]
[1757584686210,7.58,224.42,224.34,3.87]
[1757584687104,0.02854982,224.4,224.34,3.87]
[1757584688105,0.02854982,224.4,224.34,8.8663945]
[1757584688307,0.02854982,224.4,224.34,3.87]
[1757584689303,0.02854982,224.4,224.34,8.86228817]
[1757584689504,0.02854982,224.4,224.35,3.87]
[1757584690701,0.02854982,224.4,224.34,4.99228817]
[1757584691107,0.02854982,224.4,224.35,3.87]
[1757584691408,0.02854982,224.4,224.34,4.99228817]
[1757584691907,0.02854982,224.4,224.35,3.87]
[1757584692106,0.02854982,224.4,224.34,4.99228817]
[1757584692809,0.02854982,224.4,224.35,3.87]
[1757584693010,0.02854982,224.4,224.34,4.99228817]
[1757584693308,0.02854982,224.4,224.35,3.87]
[1757584695107,0.02854982,224.4,224.36,3.87]
[1757584699406,0.02854982,224.4,224.36,8.86228817]
[1757584699612,0.02854982,224.4,224.36,4.99228817]
[1757584700308,0.02854982,224.4,224.37,3.87]
[1757584700512,0.02854982,224.4,224.36,4.99228817]
[1757584701212,0.02854982,224.4,224.37,3.87]
[1757584701407,0.02854982,224.4,224.36,4.99228817]
[1757584701809,0.02854982,224.4,224.37,3.87]
[1757584702006,0.02854982,224.4,224.36,4.99228817]
[1757584702210,0.02854982,224.4,224.37,3.87]
[1757584702515,0.02854982,224.4,224.36,4.99228817]
[1757584702703,0.02854982,224.4,224.37,3.87]
[1757584703213,0.02854982,224.4,224.36,4.99228817]
[1757584703412,0.02854982,224.4,224.37,3.87]
[1757584704115,0.02854982,224.4,224.35,4.99228817]
[1757584704715,0.02854982,224.4,224.36,3.87]
[1757584705008,0.02854982,224.4,224.35,4.99228817]
[1757584705215,0.02854982,224.4,224.36,3.87]
[1757584705612,0.02854982,224.4,224.35,3.87]
[1757584705812,7.58,224.39,224.34,3.87]
[1757584706012,7.58,224.39,224.35,3.87]
[1757584706214,7.58,224.39,224.33,4.99228817]
[1757584706414,7.58,224.39,224.34,3.87]
[1757584707116,7.58,224.39,224.33,4.99228817]
[1757584707310,7.58,224.39,224.34,3.88]
[1757584708514,7.58,224.39,224.33,4.99228817]
[1757584708718,7.58,224.39,224.34,3.88]
[1757584710218,7.52854982,224.4,224.34,3.88]
[1757584712119,7.52854982,224.4,224.32,4.99228817]
[1757584713117,7.52854982,224.4,224.33,3.88]
[1757584718227,7.52854982,224.4,224.33,8.87228817]
[1757584718628,7.52854982,224.4,224.33,4.99228817]
[1757584718823,7.52854982,224.4,224.34,3.88]
[1757584723728,7.52854982,224.4,224.34,8.87228817]
[1757584728130,7.5,224.39,224.35,8.87228817]
[1757584728826,0.02854982,224.4,224.35,3.88]
[1757584729028,7.5,224.39,224.35,3.88]
[1757584729227,7.5,224.39,224.35,8.87228817]
[1757584729729,0.02854982,224.4,224.35,8.87228817]
[1757584730328,0.02854982,224.4,224.36,3.88]
[1757584730530,0.02854982,224.4,224.37,3.88]
[1757584730729,0.02854982,224.4,224.39,3.88]
[1757584731032,7.52854982,224.4,224.38,4.99228817]
[1757584731233,7.52854982,224.4,224.32,86.04]
[1757584731234,7.52854982,224.4,224.37,8.87228817]
[1757584731432,7.52854982,224.4,224.38,3.88]
[1757584731932,7.52854982,224.4,224.39,3.74516117]
[1757584740634,7.52854982,224.4,224.38,3.74516117]
[1757584740833,8.60563481,224.39,224.38,3.74516117]
[1757584741247,8.60563481,224.39,224.37,0.02821721]
[1757584743944,6.97,224.38,224.37,0.02821721]
[1757584746749,8.60563481,224.38,224.37,0.02821721]
[1757584748956,6.97,224.38,224.37,0.02821721]
[1757584749157,8.60563481,224.38,224.37,0.02821721]
[1757584751046,6.97,224.38,224.37,0.02821721]
[1757584756657,0.02854982,224.4,224.38,3.88]
[1757584760559,0.02854982,224.4,224.39,3.73942332]
[1757584761253,0.02854982,224.4,224.39,7.61942332]
[1757584772464,7.19,224.39,224.38,3.73942332]
[1757584772669,7.19,224.39,224.37,3.76764053]
[1757584775470,7.19,224.39,224.37,7.64764053]
[1757584782581,7.19,224.39,224.37,0.02821721]
[1757584785481,1.63563481,224.38,224.37,0.02821721]
[1757584785684,8.82563481,224.38,224.37,0.02821721]
[1757584787482,0.02854982,224.4,224.38,3.89]
[1757584787483,7.21854982,224.4,224.38,3.89]
[1757584788387,0.02854982,224.4,224.38,7.62942332]
[1757584788583,7.21854982,224.4,224.38,7.62942332]
[1757584789187,7.21854982,224.4,224.38,3.89]
[1757584789585,7.19,224.39,224.37,3.76764053]
[1757584790789,7.19,224.39,224.37,7.65764053]
[1757584792490,0.02854982,224.4,224.38,3.89]
[1757584793991,0.02854982,224.4,224.37,3.76764053]
[1757584794294,0.02854982,224.4,224.39,3.89]
[1757584794591,0.02854982,224.4,224.39,7.62942332]
[1757584795882,0.02854982,224.4,224.39,3.89]
[1757584797694,0.02854982,224.4,224.39,8.88228817]
[1757584798492,0.02854982,224.4,224.39,3.89]
[1757584799391,2.554025,224.54,224.39,11.81843225]
[1757584799591,10.8084984,224.53,224.45,3.73299621]
[1757584799790,7.4,224.53,224.45,3.73299621]
[1757584800596,7.4,224.51,224.44,7.58299621]
[1757584800796,7.4,224.51,224.47,0.03067365]
[1757584801892,9.954025,224.51,224.47,0.03067365]
[1757584802193,7.4,224.49,224.41,3.73299621]
[1757584802690,7.4,224.46,224.41,3.73299621]
[1757584802896,7.4,224.46,224.4,3.73299621]
[1757584803485,7.4,224.49,224.44,3.73299621]
[1757584803685,7.4,224.54,224.47,7.61299621]
[1757584803889,7.4,224.54,224.48,3.73299621]
[1757584804494,7.4,224.54,224.5,3.88]
[1757584804699,7.4,224.54,224.49,3.73299621]
[1757584804894,7.4,224.54,224.5,7.61299621]
[1757584805198,108.82,224.65,224.5,7.61299621]
[1757584805199,7.4,224.56,224.5,3.88]
[1757584805896,7.4,224.56,224.5,7.61299621]
[1757584807495,7.4,224.56,224.5,3.88]
[1757584807892,7.4,224.56,224.48,3.73299621]
[1757584808590,7.4,224.53,224.42,7.61299621]
[1757584808985,2.554025,224.5,224.42,3.88]
[1757584809192,7.4,224.49,224.42,3.88]
[1757584809796,2.554025,224.46,224.38,3.73299621]
[1757584809991,7.4,224.45,224.38,3.73299621]
[1757584810187,7.4,224.45,224.37,3.88]
[1757584810396,7.4,224.45,224.39,3.73299621]
[1757584810594,2.554025,224.5,224.4,3.73299621]
[1757584810789,7.4,224.49,224.4,7.61299621]
[1757584811598,7.4,224.49,224.4,3.88]
[1757584812598,7.4,224.49,224.4,7.61299621]
[1757584813900,7.4,224.49,224.41,3.73299621]
[1757584814300,7.4,224.49,224.42,3.88]
[1757584821596,0.0283466,224.48,224.42,3.88]
[1757584821797,0.0283466,224.48,224.45,3.88]
[1757584821798,7.4283466,224.48,224.45,3.88]
[1757584822001,7.4,224.48,224.45,3.88]
[1757584823301,2.554025,224.55,224.45,3.88]
[1757584823603,7.4,224.54,224.43,3.73299621]
[1757584824405,7.4,224.54,224.44,3.88]
[1757584825295,7.4,224.5,224.44,3.88]
[1757584830308,7.4,224.5,224.44,7.60456241]
[1757584830601,7.4,224.5,224.43,3.72456241]
[1757584830806,7.4,224.5,224.42,3.72456241]
[1757584831013,7.4,224.5,224.41,3.72456241]
[1757584831402,0.02868814,224.51,224.39,3.72456241]
[1757584831403,7.19,224.48,224.39,3.72456241]
[1757584831811,7.19,224.48,224.37,3.72456241]
[1757584833111,2.58245137,224.45,224.35,3.72456241]
[1757584833315,10.593674,224.44,224.33,3.72456241]
[1757584833510,7.19,224.44,224.33,3.72456241]
[1757584833706,7.19,224.42,224.32,7.60456241]
[1757584838212,7.19,224.42,224.32,3.88]
[1757584843414,7.19,224.42,224.33,3.88]
[1757584848124,7.19,224.42,224.35,3.88]
[1757584852123,7.19,224.42,224.33,3.72456241]
[1757584852322,7.19,224.48,224.41,3.72456241]
[1757584852524,7.19,224.55,224.42,7.60456241]
[1757584852715,7.19,224.55,224.44,7.60456241]
[1757584853222,7.19,224.55,224.45,3.72456241]
[1757584854124,7.19,224.55,224.44,7.60456241]
[1757584858230,7.19,224.55,224.44,3.88]
[1757584858830,7.19,224.55,224.44,7.60456241]
[1757584859125,9.99981013,224.77,224.44,3.72456241]
[1757584859331,10.65795763,224.67,224.53,3.87]
[1757584859531,10.65795763,224.67,224.53,7.59456241]
[1757584859532,7.26,224.67,224.53,7.59456241]
[1757584859831,7.26,224.67,224.54,3.87]
[1757584860432,7.26,224.67,224.56,1.63232808]
[1757584861030,7.26,224.67,224.57,3.87]
[1757584861234,7.26,224.67,224.59,1.63232808]
[1757584861435,304.35990506,224.82,224.62,1.63232808]
[1757584861436,7.26,224.81,224.62,1.63232808]
[1757584861631,7.26,224.73,224.63,3.87]
[1757584864634,7.26,224.71,224.63,3.87]
[1757584865532,7.26,224.71,224.58,3.87]
[1757584865533,1.63232808,224.69,224.58,3.87]
[1757584865840,7.26,224.68,224.58,3.87]
[1757584866237,1.63232808,224.67,224.58,3.87]
[1757584866442,7.26,224.66,224.56,1.63232808]
[1757584866642,7.26,224.66,224.55,3.87]
[1757584868042,1.63232808,224.65,224.55,3.87]
[1757584869236,7.26,224.66,224.55,3.87]
[1757584869432,1.63232808,224.65,224.55,3.87]
[1757584872043,7.26,224.66,224.55,3.87]
[1757584872245,1.63232808,224.65,224.55,3.87]
[1757584872442,7.26,224.66,224.57,3.87]
[1757584872748,8.89232808,224.7,224.59,1.63232808]
[1757584872940,8.89232808,224.7,224.6,3.87]
[1757584873640,7.26,224.7,224.6,3.87]
[1757584874541,7.26,224.93,224.69,3.87]
[1757584874745,7.26,224.93,224.75,1.63232808]
[1757584874946,7.26,224.89,224.76,3.87]
[1757584875545,1.63232808,224.88,224.76,3.87]
[1757584876148,7.26,224.89,224.76,3.87]
[1757584876350,8.89232808,224.89,224.76,5.50232808]
[1757584877251,7.26,224.89,224.76,5.50232808]
[1757584877454,8.89232808,224.89,224.76,5.50232808]
[1757584877849,7.26,225.0,224.86,3.87]
[1757584878047,1.63232808,224.99,224.86,3.87]
[1757584878855,0.033806,224.95,224.86,3.87]
[1757584879050,0.033806,224.95,224.89,3.87]
[1757584879554,1.63232808,225.08,224.95,3.83]
[1757584879760,7.26,225.25,224.98,3.83]
[1757584880048,8.89232808,225.13,225.01,3.83]
[1757584880454,7.26,225.13,225.01,3.83]
[1757584880653,7.26,225.13,225.05,0.03402365]
[1757584881956,4.1682701,225.11,225.05,0.03402365]
[1757584882154,7.26,225.1,225.05,0.03402365]
[1757584882553,7.7,225.1,225.05,0.03402365]
[1757584882755,7.26,225.1,225.05,0.03402365]
[1757584882953,4.1682701,225.14,225.05,0.03402365]
[1757584883257,7.26,225.13,225.05,0.03402365]
[1757584885551,64.98,225.13,225.05,0.03402365]
[1757584885954,65.42,225.13,225.05,0.03402365]
[1757584886349,64.98,225.13,225.05,0.03402365]
[1757584888155,65.42,225.13,225.05,0.03402365]
[1757584888551,7.26,225.13,225.05,0.03402365]
[1757584888753,7.26,225.13,225.05,3.84402365]
[1757584889154,7.57,225.2,225.05,3.84402365]
[1757584889656,7.57,225.2,225.05,3.81]
[1757584889857,7.57,225.2,225.1,0.03028186]
[1757584891253,7.57,225.27,225.11,3.81]
[1757584891754,7.57,225.27,225.17,0.02983041]
[1757584895662,115.6,225.28,225.17,0.02983041]
[1757584895663,7.57,225.24,225.17,0.02983041]
[1757584896363,8.01,225.24,225.07,3.81]
[1757584896565,7.57,225.24,225.07,3.81]
[1757584897864,4.1682701,225.2,225.07,3.81]
[1757584898065,7.57,225.18,225.07,3.81]
[1757584898265,7.57,225.18,224.97,3.84]
[1757584898566,7.57,225.14,224.97,3.84]
[1757584898767,7.57,225.09,224.97,3.84]
[1757584899061,76.91,225.09,224.97,3.84]
[1757584901864,7.57,225.08,224.86,3.84]
[1757584902258,4.1682701,225.05,224.86,3.84]
[1757584902562,7.57,225.04,224.86,3.84]
[1757584904866,7.57,225.02,224.86,3.84]
[1757584906168,3.34477003,225.01,224.82,3.85]
[1757584906368,7.57,224.99,224.82,3.85]
[1757584907772,56.66,224.98,224.82,3.85]
[1757584907966,7.57,224.99,224.82,3.85]
[1757584908171,53.3,224.98,224.82,3.85]
[1757584909869,7.57,224.97,224.82,3.85]
[1757584912376,7.57,224.95,224.82,3.85]
[1757584915272,35.24,225.03,224.82,3.85]
[1757584916378,3.37082878,225.02,224.82,3.85]
[1757584916567,35.24,225.03,224.82,3.85]
[1757584916877,3.37082921,225.02,224.82,3.85]
[1757584917171,7.57,225.04,224.82,3.85]
[1757584917377,7.57,225.04,224.87,3.84]
[1757584918473,7.57,225.04,224.88,3.84]
[1757584919377,3.38394654,225.03,224.88,3.84]
[1757584919579,7.57,225.04,224.88,3.84]
[1757584919777,3.38394697,225.03,224.88,3.84]
[1757584919977,7.57,225.04,224.88,3.84]
[1757584920276,3.38394784,225.03,224.88,3.84]
[1757584920576,7.57,225.04,224.88,3.84]
[1757584920776,3.38445474,225.03,224.88,3.84]
[1757584920975,7.57,225.04,224.88,3.84]
[1757584921177,3.38445474,225.03,224.88,3.84]
[1757584921376,7.57,225.04,224.88,3.84]
[1757584921973,7.57,225.04,224.89,3.84]
[1757584922178,7.57,225.04,224.89,7.47858601]
[1757584922380,7.57,225.04,224.9,3.84]
[1757584922674,6.93,225.17,224.94,3.84]
[1757584922873,6.93,225.17,224.97,3.84]
[1757584922874,3.38528147,225.16,224.97,3.84]
[1757584923179,6.93,225.17,224.99,3.84]
[1757584923477,3.31997052,225.16,224.99,3.84]
[1757584923676,6.93,225.17,224.99,3.84]
[1757584923978,3.31935247,225.16,224.99,3.84]
[1757584924279,6.93,225.17,224.99,3.84]
[1757584924478,3.31873139,225.16,224.99,3.84]
[1757584924673,6.93,225.17,224.99,3.84]
[1757584924872,6.93,225.17,225.01,3.84]
[1757584926378,9.02,225.24,224.96,3.84]
[1757584926379,6.93,225.15,224.96,3.84]
[1757584926676,6.93,225.13,224.96,3.84]
[1757584926881,6.93,225.11,224.96,3.84]
[1757584927076,6.93,225.09,224.96,3.84]
[1757584930883,0.03042837,225.05,224.96,3.84]
[1757584931080,0.03042837,225.05,225.0,3.87263349]
[1757584931285,0.03042837,225.05,225.0,0.03263349]
[1757584931676,6.93,225.04,225.0,0.03263349]
[1757584931881,0.03042837,225.05,225.0,0.03263349]
[1757584932181,6.93,225.04,225.0,0.03263349]
[1757584932383,0.03042837,225.05,225.0,0.03263349]
[1757584933279,6.93,225.04,225.0,0.03263349]
[1757584933483,0.03042837,225.05,225.0,0.03263349]
[1757584934085,6.93,225.04,225.0,0.03263349]
[1757584934282,0.03042837,225.05,225.0,0.03263349]
[1757584935086,6.93,225.04,225.0,0.03263349]
[1757584935282,0.03042837,225.05,225.0,0.03263349]
[1757584935687,6.93,225.04,225.0,0.03263349]
[1757584935880,0.03042837,225.05,225.01,3.84]
[1757584936388,6.96042837,225.05,225.0,0.03263349]
[1757584938890,6.96042837,225.05,225.0,3.87263349]
[1757584939188,0.03042837,225.05,225.0,0.03263349]
[1757584940183,0.03042837,225.05,225.01,3.84]
[1757584940586,0.03042837,225.05,225.0,0.03263349]
[1757584940787,0.03042837,225.05,225.01,3.84]
[1757584941089,0.03042837,225.05,225.0,0.03263349]
[1757584941586,0.03042837,225.05,225.01,3.84]
[1757584941891,0.03042837,225.05,225.0,0.03263349]
[1757584942987,0.03042837,225.05,225.01,3.84]
[1757584943982,6.93,225.16,225.02,3.81]
[1757584944386,6.93,225.16,225.04,3.81]
[1757584945293,6.93,225.16,225.08,0.0326696]
[1757584946194,6.93,225.28,225.09,3.81]
[1757584946688,6.93,225.28,225.16,0.03209891]
[1757584948489,362.24,225.29,225.16,0.03209891]
[1757584948490,6.89,225.26,225.16,0.03209891]
[1757584948794,6.89,225.24,225.16,0.03209891]
[1757584950290,7.33,225.24,225.16,0.00209891]
[1757584951495,0.03175377,225.22,225.16,0.00209891]
[1757584951694,121.55,225.21,225.16,0.00209891]
[1757584955499,3.75542325,225.2,225.16,0.00209891]
[1757584955698,10.20542325,225.19,225.0,3.83]
[1757584955895,6.89,225.17,225.0,3.83]
[1757584956094,6.89,225.15,225.0,3.83]
[1757584956396,6.89,225.13,225.0,3.83]
[1757584959200,3.32365911,225.12,225.0,3.83]
[1757584959393,10.21365911,225.11,225.0,3.83]
[1757584959593,6.89,225.09,225.0,3.83]
[1757584959795,27.62,225.16,225.0,3.83]
[1757584960092,6.89,225.14,225.0,3.83]
[1757584960401,3.32828556,225.13,225.0,3.83]
[1757584960598,6.89,225.14,225.0,3.83]
[1757584960794,6.89,225.12,225.0,3.83]
[1757584963489,6.89,225.12,225.0,3.68945551]
[1757584963689,6.89,225.12,225.01,3.83]
[1757584964095,3.33169405,225.11,224.96,7.51945551]
[1757584964293,6.89,225.09,224.96,3.83]
[1757584964495,6.89,225.09,224.96,3.68945551]
[1757584964795,6.89,225.09,224.97,3.84]
[1757584965002,6.89,225.09,224.99,3.84]
[1757584965998,6.89,225.09,224.99,7.52945551]
[1757584966694,9.18,225.17,225.0,3.84]
[1757584966894,10.2235055,225.16,225.0,3.84]
[1757584967091,6.89,225.14,225.0,3.84]
[1757584967292,3.3335055,225.13,225.0,3.84]
[1757584967498,6.89,225.11,225.0,3.84]
[1757584969200,6.89,225.09,225.0,3.84]
[1757584969596,6.89,225.09,224.96,7.52945551]
[1757584969999,25.1249921,225.19,224.92,3.68945551]
[1757584970000,6.89,225.07,224.92,3.68945551]
[1757584970299,13.75443646,225.08,224.91,7.52945551]
[1757584970300,6.89,225.05,224.91,7.52945551]
[1757584971705,6.89,225.05,224.92,3.68945551]
[1757584972597,3.3335369,225.04,224.91,3.84]
[1757584972799,6.89,225.03,224.91,3.84]
[1757584974100,6.89,225.03,224.91,7.52945551]
[1757584974505,6.89,225.03,224.91,3.84]
[1757584976905,6.89,225.03,224.88,3.68945551]
[1757584977105,6.89,225.01,224.86,3.84]
[1757584977404,6.98,224.99,224.82,3.68945551]
[1757584977605,6.98,224.97,224.81,3.85]
[1757584977801,6.89886036,224.95,224.8,3.68945551]
[1757584978108,6.98,224.93,224.76,3.85]
[1757584978302,6.98,224.91,224.76,3.85]
[1757584978907,6.98,224.88,224.71,3.85]
[1757584979106,6.98,224.86,224.71,3.85]
[1757584980309,6.98,224.86,224.66,3.85]
[1757584980906,6.98,224.83,224.66,3.85]
[1757584981304,6.98,224.81,224.66,3.85]
[1757584982506,6.89886036,224.94,224.66,3.85]
[1757584982712,391.6523681,224.95,224.66,3.85]
[1757584982713,125.05191374,224.93,224.67,3.85]
[1757584983014,6.98,224.92,224.69,3.85]
[1757584984814,121.74,224.92,224.69,3.85]
[1757584985014,121.68,224.92,224.69,3.85]
[1757584985204,6.98,224.92,224.69,3.85]
[1757584986113,6.98,224.92,224.72,3.85]
[1757584987116,6.98,224.92,224.77,3.85]
[1757584987314,6.98,224.92,224.79,3.85]
[1757584987515,58.19636811,224.95,224.79,3.85]
[1757584987716,58.19636811,224.95,224.78,71.78]
[1757584987717,58.19636811,224.95,224.8,62.0]
[1757584988014,58.19636811,224.95,224.81,3.85]
[1757584988415,6.98,224.96,224.81,3.85]
[1757584988616,0.03122676,224.9,224.81,3.85]
[1757584991317,0.03122676,224.9,224.82,62.0]
[1757584991515,0.03122676,224.9,224.83,118.67]
[1757584991718,6.98,225.02,224.84,3.85]
[1757584992016,6.98,225.06,224.86,13.37]
[1757584992215,6.98,225.06,224.87,3.82]
[1757584992409,6.98,225.06,224.9,3.82]
[1757584993020,6.98,225.06,224.97,3.82]
[1757584997425,6.98,225.06,224.96,0.03412317]
[1757585001022,6.98,225.06,224.97,3.8]
[1757585008432,13.34590841,225.17,224.98,70.38]
[1757585008433,7.54,225.15,224.98,70.38]
[1757585008731,7.54,225.16,224.98,70.38]
[1757585009131,7.54,225.16,225.05,0.033015]
[1757585016937,7.56991143,225.13,225.05,0.033015]
[1757585018334,1.75086653,225.12,225.05,0.033015]
[1757585018737,9.32077796,225.13,225.05,0.033015]
[1757585020143,7.56991143,225.13,225.05,0.033015]
[1757585020338,1.75086653,225.12,225.05,0.033015]
[1757585021342,9.32077796,225.13,225.05,0.033015]
[1757585023234,7.56991143,225.13,225.05,0.033015]
[1757585029137,7.54,225.1,225.05,0.033015]
[1757585029738,1.75086653,225.11,225.05,0.033015]
[1757585030544,7.54,225.1,225.05,0.033015]
[1757585030738,1.75086653,225.11,225.05,0.033015]
[1757585031141,7.54,225.11,225.05,0.033015]
[1757585031847,7.54,225.08,225.05,0.033015]
[1757585032946,7.54,225.05,224.96,61.47749018]
[1757585033143,7.54,225.05,224.97,3.67749018]
[1757585033647,7.54,225.05,224.96,61.47749018]
[1757585033849,7.54,225.05,224.96,3.67749018]
[1757585034048,0.03081861,225.03,224.96,3.67749018]
[1757585034248,0.03081861,225.03,224.97,3.67749018]
[1757585035144,0.03081861,225.03,224.98,3.67749018]
[1757585035546,7.54,225.02,224.98,3.67749018]
[1757585035742,0.03081861,225.03,224.98,3.67749018]
[1757585035944,7.54,225.02,224.97,3.67749018]
[1757585036148,7.57081861,225.03,224.97,3.67749018]
[1757585037451,7.42,225.02,224.98,3.67749018]
[1757585039350,0.03081861,225.03,224.98,3.67749018]
[1757585039546,7.42,225.02,224.98,3.67749018]
[1757585041350,7.42,225.02,224.97,3.67749018]
[1757585041553,7.42,225.02,224.97,7.48749018]
[1757585041853,7.42,225.02,224.98,3.67749018]
[1757585044956,7.42,225.02,224.98,7.48749018]
[1757585046354,0.03081861,225.03,224.98,7.48749018]
[1757585046655,7.42,225.02,224.98,7.48749018]
[1757585047051,0.03081861,225.03,224.99,3.81]
[1757585047052,7.45081861,225.03,224.99,3.81]
[1757585047257,0.03081861,225.03,224.99,7.48749018]
[1757585047454,0.03081861,225.03,224.99,3.67749018]
[1757585047660,0.03081861,225.03,225.02,7.48749018]
[1757585051160,0.03081861,225.03,225.02,3.81]
[1757585051356,0.03081861,225.03,225.02,7.48749018]
[1757585057753,0.03081861,225.03,224.99,3.67749018]
[1757585058162,7.42,225.02,224.99,3.67749018]
[1757585059061,7.42,225.02,224.99,7.48749018]
[1757585059259,0.03081861,225.03,224.99,7.48749018]
[1757585059465,7.45081861,225.03,224.99,7.48749018]
[1757585060168,7.42,225.02,224.99,7.48749018]
[1757585060961,7.42,225.02,224.99,3.81]
[1757585061660,7.42,225.02,224.99,7.48749018]
[1757585061964,7.42,225.02,224.99,3.81]
[1757585062367,7.42,225.02,224.99,7.48749018]
[1757585063358,0.03081861,225.03,224.99,3.67749018]
[1757585063569,0.03081861,225.03,225.0,3.81]
[1757585063959,0.03081861,225.03,225.01,3.81]
[1757585066063,0.03081861,225.03,225.02,3.81]
[1757585074470,7.36081861,225.03,225.01,3.67749018]
[1757585074676,7.33,225.02,225.01,3.67749018]
[1757585075878,7.36081861,225.03,225.01,3.67749018]
[1757585081988,0.03081861,225.03,225.02,3.81]